fUSD/lending_fUSD_20240210
["ID","MTS","AMOUNT","RATE_DAILY","PERIOD"]
[313700633,1707595851052,-1831.78,0.000335,2]
[313700634,1707595851063,-1831.78,0.000335,2]
[313700635,1707595851073,-1831.78,0.000335,2]
[313700636,1707595851083,-1831.78,0.000335,2]
[313700637,1707595851092,-1831.78,0.000335,2]
[313700638,1707595851101,-1831.78,0.000335,2]
[313700639,1707595851111,-1831.78,0.000335,2]
[313700640,1707595851120,-150.0,0.00033598,2]
[313700641,1707595851129,-170.0,0.000336,22]
[313700642,1707595851138,-681.97,0.00033698,2]
[313700643,1707595851147,-150.0,0.00033769,30]
[313700644,1707595851156,-9963.04302777,0.0003377,3]
[313700645,1707595851166,-24832.11208212,0.0003377,3]
[313700646,1707595851175,-123143.48922565,0.0003377,10]
[313700647,1707595851184,-50000.0,0.0003377,10]
[313700648,1707595851194,-45672.24429307,0.0003377,10]
[313700649,1707595851203,-153.65706983,0.000339,2]
[313700650,1707595851212,-153.6570698,0.000339,2]
[313700651,1707595851222,-153.6570698,0.000339,2]
[313700652,1707595851231,-153.6570698,0.000339,2]
[313700653,1707595851241,-153.6570698,0.000339,2]
[313700654,1707595851251,-153.6570698,0.000339,2]
[313700655,1707595851260,-1600.268967,0.00033909,2]
[313700656,1707595851269,-305.44,0.0003391,2]
[313700657,1707595851278,-681.97,0.00033972,2]
[313700658,1707595851287,-50000.0,0.00034,4]
[313700659,1707595851297,-767.10554147,0.00034,4]
[313700660,1707595851306,-500.0,0.00034,2]
[313700661,1707595851316,-600.0,0.00034,35]
[313700662,1707595851326,-151.0,0.00034077,2]
[313700663,1707595851335,-170.0,0.000341,23]
[313700664,1707595851345,-150.0,0.00034175,2]
[313700665,1707595851354,-681.97,0.00034246,2]
[313700666,1707595851363,-155.0,0.00034247,2]
[313700667,1707595851373,-1000.0,0.00034286,2]
[313700668,1707595851383,-1600.268967,0.00034322,2]
[313700669,1707595851392,-1000.0,0.00034346,7]
[313700670,1707595851402,-1000.0,0.00034346,7]
[313700671,1707595851411,-1000.0,0.00034346,7]
[313700672,1707595851420,-1998.44,0.0003441,2]
[313700673,1707595851430,-1935.9366652,0.00034427,2]
[313700674,1707595851439,-345.786678,0.0003452,2]
[313700675,1707595851448,-2577.104572,0.0003452,2]
[313700676,1707595851457,-6457.483565,0.0003452,2]
[313700677,1707595851467,-1574.202813,0.0003452,2]
[313700678,1707595851476,-1189.144679,0.0003452,2]
[313700679,1707595851485,-681.97,0.0003452,2]
[313700680,1707595851495,-10000.0,0.00034521,2]
[313700681,1707595851504,-150.0,0.00034548,10]
[313700682,1707595851513,-170.0,0.000346,23]
[313700683,1707595851523,-1600.268967,0.00034736,2]
[313700684,1707595851532,-150.0,0.00034751,2]
[313700685,1707595851542,-1000.0,0.0003479,7]
[313700686,1707595851551,-518.680017,0.00034794,2]
[313700687,1707595851561,-3865.656858,0.00034794,2]
[313700688,1707595851570,-9686.225348,0.00034794,2]
[313700689,1707595851580,-2361.30422,0.00034794,2]
[313700690,1707595851589,-1783.717019,0.00034794,2]
[313700691,1707595851599,-681.97,0.00034794,2]
[313700692,1707595851608,-264.25463404,0.000348,2]
[313700693,1707595851618,-2519.0,0.00034857,2]
[313700694,1707595851627,-343.0,0.00034857,2]
[313700695,1707595851637,-11078.539,0.0003488,2]
[313700696,1707595851646,-2286.0,0.0003488,2]
[313700697,1707595851656,-9013.93953825,0.000349,4]
[313700698,1707595851666,-1200.0,0.000349,10]
[313700699,1707595851675,-6576.17714998,0.000349,2]
[313700700,1707595851684,-6576.17714989,0.000349,2]
[313700701,1707595851694,-6576.17714989,0.000349,2]
[313700702,1707595851703,-6576.17714989,0.000349,2]
[313700703,1707595851712,-6576.17714989,0.000349,2]
[313700704,1707595851723,-6576.17714989,0.000349,2]
[313700705,1707595851732,-6576.17714989,0.000349,2]
[313700706,1707595851742,-6576.17714989,0.000349,2]
[313700707,1707595851751,-58000.0,0.00034913,3]
[313700708,1707595851761,-58000.0,0.00034922,3]
[313700709,1707595851770,-359.90004738,0.00034931,2]
[313700710,1707595851779,-691.573356,0.00034931,2]
[313700711,1707595851789,-5154.209144,0.00034931,2]
[313700712,1707595851798,-12914.96713,0.00034931,2]
[313700713,1707595851807,-3148.405627,0.00034931,2]
[313700714,1707595851816,-2378.289359,0.00034931,2]
[313700715,1707595851826,-58000.0,0.00034931,3]
[313700716,1707595851836,-445.88817028,0.00034931,3]
[313700717,1707595851845,-1000.0,0.00034952,7]
[313700718,1707595851855,-816.0,0.00034956,2]
[313700719,1707595851865,-2766.201,0.00034956,2]
[313700720,1707595851874,-951.0,0.00034956,2]
[313700721,1707595851883,-1232.0,0.00034956,2]
[313700722,1707595851893,-1253.0,0.00034956,2]
[313700723,1707595851904,-150.0,0.00034999,30]
[313700724,1707595851917,-50000.0,0.00035,5]
[313700725,1707595851928,-66083.13803128,0.00035,4]
[313700726,1707595851938,-186.9448743,0.00035,4]
[313700727,1707595851948,-450.84278538,0.00035,4]
[313700728,1707595851958,-155.0,0.00035,2]
[313700729,1707595851968,-660.9443613,0.00035,4]
[313700730,1707595851980,-3103.0,0.00035,2]
[313700731,1707595851991,-10000.0,0.00035,5]
[313700732,1707595852000,-6092.0,0.00035,3]
[313700733,1707595852010,-524.89020244,0.00035,2]
[313700734,1707595852019,-937.62859704,0.00035,2]
[313700735,1707595852029,-165.0,0.00035,2]
[313700736,1707595852038,-165.0,0.00035,2]
[313700737,1707595852048,-16318.01165163,0.00035,30]
[313700738,1707595852057,-1500.0,0.00035,3]
[313700739,1707595852067,-1185.76083569,0.00035,2]
[313700740,1707595852076,-1185.76083569,0.00035,2]
[313700741,1707595852086,-1288.38157118,0.00035,2]
[313700742,1707595852096,-1288.38157118,0.00035,2]
[313700743,1707595852105,-229.28164874,0.00035,2]
[313700744,1707595852115,-229.28164874,0.00035,2]
[313700745,1707595852124,-229.28164874,0.00035,2]
[313700746,1707595852134,-229.28164874,0.00035,2]
[313700747,1707595852144,-229.28164874,0.00035,2]
[313700748,1707595852153,-229.28164874,0.00035,2]
[313700749,1707595852163,-229.28164874,0.00035,2]
[313700750,1707595852173,-229.28164874,0.00035,2]
[313700751,1707595852182,-229.28164874,0.00035,2]
[313700752,1707595852192,-229.28164874,0.00035,2]
[313700753,1707595852202,-229.28164874,0.00035,2]
[313700754,1707595852213,-229.28164874,0.00035,2]
[313700755,1707595852222,-229.28164874,0.00035,2]
[313700756,1707595852232,-229.28164874,0.00035,2]
[313700757,1707595852241,-181.0,0.00035,2]
[313700758,1707595852252,-77979.18537391,0.00035,2]
[313700759,1707595852262,-77979.18537391,0.00035,2]
[313700760,1707595852271,-77979.18537391,0.00035,2]
[313700761,1707595852282,-2490.02627106,0.00035,2]
[313700762,1707595852291,-2490.02627106,0.00035,2]
[313700763,1707595852302,-2490.02627106,0.00035,2]
[313700764,1707595852311,-2490.02627106,0.00035,2]
[313700765,1707595852321,-2490.02627106,0.00035,2]
[313700766,1707595852331,-2490.02627106,0.00035,2]
[313700767,1707595852341,-2490.02627106,0.00035,2]
[313700768,1707595852350,-2490.02627106,0.00035,2]
[313700769,1707595852360,-2490.02627106,0.00035,2]
[313700770,1707595852370,-2490.02627106,0.00035,2]
[313700771,1707595852380,-2490.02627106,0.00035,2]
[313700772,1707595852390,-2490.02627106,0.00035,2]
[313700773,1707595852399,-2490.02627106,0.00035,2]
[313700774,1707595852409,-2490.02627106,0.00035,2]
[313700775,1707595852418,-2490.02627106,0.00035,2]
[313700776,1707595852428,-2490.02627106,0.00035,2]
[313700777,1707595852437,-2490.02627106,0.00035,2]
[313700778,1707595852447,-2490.02627106,0.00035,2]
[313700779,1707595852456,-2490.02627106,0.00035,2]
[313700780,1707595852466,-2490.02627106,0.00035,2]
[313700781,1707595852476,-2490.02627106,0.00035,2]
[313700782,1707595852485,-2490.02627106,0.00035,2]
[313700783,1707595852495,-2490.02627106,0.00035,2]
[313700784,1707595852505,-2490.02627106,0.00035,2]
[313700785,1707595852515,-2490.02627106,0.00035,2]
[313700786,1707595852525,-2490.02627106,0.00035,2]
[313700787,1707595852535,-2490.02627106,0.00035,2]
[313700788,1707595852545,-2490.02627106,0.00035,2]
[313700789,1707595852554,-2490.02627106,0.00035,2]
[313700790,1707595852564,-2490.02627106,0.00035,2]
[313700791,1707595852574,-2490.02627106,0.00035,2]
[313700792,1707595852583,-2490.02627106,0.00035,2]
[313700793,1707595852594,-2490.02627106,0.00035,2]
[313700794,1707595852604,-2490.02627106,0.00035,2]
[313700795,1707595852614,-2490.02627106,0.00035,2]
[313700796,1707595852624,-2490.02627106,0.00035,2]
[313700797,1707595852635,-2490.02627106,0.00035,2]
[313700798,1707595852644,-2490.02627106,0.00035,2]
[313700799,1707595852655,-2490.02627106,0.00035,2]
[313700800,1707595852664,-2490.02627106,0.00035,2]
[313700801,1707595852673,-2490.02627106,0.00035,2]
[313700802,1707595852683,-2490.02627106,0.00035,2]
[313700803,1707595852693,-2490.02627106,0.00035,2]
[313700804,1707595852702,-2490.02627106,0.00035,2]
[313700805,1707595852712,-2490.02627106,0.00035,2]
[313700806,1707595852721,-2490.02627106,0.00035,2]
[313700807,1707595852730,-2490.02627106,0.00035,2]
[313700808,1707595852740,-2490.02627106,0.00035,2]
[313700809,1707595852749,-2490.02627106,0.00035,2]
[313700810,1707595852759,-2490.02627106,0.00035,2]
[313700811,1707595852769,-2490.02627106,0.00035,2]
[313700812,1707595852778,-2490.02627106,0.00035,2]
[313700813,1707595852788,-2490.02627106,0.00035,2]
[313700814,1707595852798,-2490.02627106,0.00035,2]
[313700815,1707595852807,-2490.02627106,0.00035,2]
[313700816,1707595852817,-2490.02627106,0.00035,2]
[313700817,1707595852826,-2490.02627106,0.00035,2]
[313700818,1707595852836,-2490.02627106,0.00035,2]
[313700819,1707595852845,-2490.02627106,0.00035,2]
[313700820,1707595852855,-2490.02627106,0.00035,2]
[313700821,1707595852864,-2490.02627106,0.00035,2]
[313700822,1707595852873,-2490.02627106,0.00035,2]
[313700823,1707595852884,-2490.02627106,0.00035,2]
[313700824,1707595852896,-2490.02627106,0.00035,2]
[313700825,1707595852907,-2490.02627106,0.00035,2]
[313700826,1707595852917,-2490.02627106,0.00035,2]
[313700827,1707595852926,-2490.02627106,0.00035,2]
[313700828,1707595852935,-2490.02627106,0.00035,2]
[313700829,1707595852945,-2490.02627106,0.00035,2]
[313700830,1707595852954,-2490.02627106,0.00035,2]
[313700831,1707595852964,-2490.02627106,0.00035,2]
[313700832,1707595852973,-2490.02627106,0.00035,2]
[313700833,1707595852984,-2490.02627106,0.00035,2]
[313700834,1707595852994,-2490.02627106,0.00035,2]
[313700835,1707595853003,-2490.02627106,0.00035,2]
[313700836,1707595853013,-2490.02627106,0.00035,2]
[313700837,1707595853022,-2490.02627106,0.00035,2]
[313700838,1707595853031,-2490.02627106,0.00035,2]
[313700839,1707595853041,-2490.02627106,0.00035,2]
[313700840,1707595853050,-2490.02627106,0.00035,2]
[313700841,1707595853059,-2490.02627106,0.00035,2]
[313700842,1707595853068,-2490.02627106,0.00035,2]
[313700843,1707595853078,-2490.02627106,0.00035,2]
[313700844,1707595853087,-2490.02627106,0.00035,2]
[313700845,1707595853097,-2490.02627106,0.00035,2]
[313700846,1707595853107,-2490.02627106,0.00035,2]
[313700847,1707595853117,-2490.02627106,0.00035,2]
[313700848,1707595853127,-2490.02627106,0.00035,2]
[313700849,1707595853137,-2490.02627106,0.00035,2]
[313700850,1707595853147,-2490.02627106,0.00035,2]
[313700851,1707595853156,-2490.02627106,0.00035,2]
[313700852,1707595853165,-2490.02627106,0.00035,2]
[313700853,1707595853175,-2490.02627106,0.00035,2]
[313700854,1707595853184,-2490.02627106,0.00035,2]
[313700855,1707595853193,-2490.02627106,0.00035,2]
[313700856,1707595853203,-2490.02627106,0.00035,2]
[313700857,1707595853213,-2490.02627106,0.00035,2]
[313700858,1707595853223,-2490.02627106,0.00035,2]
[313700859,1707595853232,-2490.02627106,0.00035,2]
[313700860,1707595853242,-2490.02627106,0.00035,2]
[313700861,1707595853251,-4000.0,0.00035,4]
[313700862,1707595853261,-864.466695,0.00035068,2]
[313700863,1707595853270,-6442.761431,0.00035068,2]
[313700864,1707595853280,-16143.708913,0.00035068,2]
[313700865,1707595853290,-3935.507034,0.00035068,2]
[313700866,1707595853300,-2972.861699,0.00035068,2]
[313700867,1707595853309,-681.97,0.00035068,2]
[313700868,1707595853319,-170.0,0.000351,24]
[313700869,1707595853328,-963.12364756,0.00035131,2]
[313700870,1707595853338,-6576.17714989,0.00035151,2]
[313700871,1707595853348,-153.6570698,0.00035319,2]
[313700872,1707595853358,-150.0,0.00035328,2]
[313700873,1707595853367,-1210.253373,0.00035342,2]
[313700874,1707595853378,-9019.866003,0.00035342,2]
[313700875,1707595853387,-22601.192478,0.00035342,2]
[313700876,1707595853398,-5509.709848,0.00035342,2]
[313700877,1707595853408,-4162.006379,0.00035342,2]
[313700878,1707595853418,-681.97,0.00035342,2]
[313700879,1707595853428,-305.44,0.00035365,2]
[313700880,1707595853438,-671.88,0.00035407,2]
[313700881,1707595853448,-152.0,0.00035421,3]
[313700882,1707595853457,-5000.0,0.00035432,2]
[313700883,1707595853467,-434.0,0.0003554,2]
[313700884,1707595853476,-1500.0,0.000356,2]
[313700885,1707595853486,-170.0,0.000356,24]
[313700886,1707595853495,-217.69183596,0.00035615,30]
[313700887,1707595853505,-681.97,0.00035616,2]
[313700888,1707595853514,-500.0,0.00035616,2]
[313700889,1707595853523,-500.0,0.00035616,2]
[313700890,1707595853532,-500.0,0.00035616,2]
[313700891,1707595853541,-500.0,0.00035616,2]
[313700892,1707595853551,-500.0,0.00035616,2]
[313700893,1707595853561,-500.0,0.00035616,2]
[313700894,1707595853571,-500.0,0.00035616,2]
[313700895,1707595853580,-500.0,0.00035616,2]
[313700896,1707595853591,-500.0,0.00035616,2]
[313700897,1707595853784,-500.0,0.00035616,2]
[313700898,1707595853794,-500.0,0.00035616,2]
[313700899,1707595853803,-500.0,0.00035616,2]
[313700900,1707595853812,-500.0,0.00035616,2]
[313700901,1707595853821,-500.0,0.00035616,2]
[313700902,1707595853830,-500.0,0.00035616,2]
[313700903,1707595853839,-500.0,0.00035616,2]
[313700904,1707595853848,-500.0,0.00035616,2]
[313700905,1707595853857,-500.0,0.00035616,2]
[313700906,1707595853866,-500.0,0.00035616,2]
[313700907,1707595853875,-500.0,0.00035616,2]
[313700908,1707595853885,-10650.93,0.00035616,2]
[313700909,1707595853894,-3547.66,0.00035616,2]
[313700910,1707595853906,-1879787.1,0.00035616,2]
[313700911,1707595853923,-77979.18537391,0.00035616,2]
[313700912,1707595853932,-300.0,0.00035616,2]
[313700913,1707595853942,-155.0,0.00035617,2]
[313700914,1707595853951,-19000.65292053,0.000357,2]
[313700915,1707595853961,-10000.0,0.00035798,2]
[313700916,1707595853970,-1831.78,0.000358,3]
[313700917,1707595853980,-1831.78,0.000358,3]
[313700918,1707595853990,-1831.78,0.000358,3]
[313700919,1707595853999,-1831.78,0.000358,3]
[313700920,1707595854009,-1831.78,0.000358,3]
[313700921,1707595854018,-1831.78,0.000358,3]
[313700922,1707595854027,-1831.78,0.000358,3]
[313700923,1707595854036,-1831.78,0.000358,3]
[313700924,1707595854045,-1831.78,0.000358,3]
[313700925,1707595854054,-1831.78,0.000358,3]
[313700926,1707595854063,-1831.78,0.000358,3]
[313700927,1707595854074,-1831.78,0.000358,3]
[313700928,1707595854083,-1831.78,0.000358,3]
[313700929,1707595854092,-1831.78,0.000358,3]
[313700930,1707595854102,-1831.78,0.000358,3]
[313700931,1707595854111,-1831.78,0.000358,3]
[313700932,1707595854120,-1831.78,0.000358,3]
[313700933,1707595854129,-1831.78,0.000358,3]
[313700934,1707595854139,-1831.78,0.000358,3]
[313700935,1707595854148,-1831.78,0.000358,3]
[313700936,1707595854157,-1000.0,0.00035843,10]
[313700937,1707595854166,-1000.0,0.00035843,10]
[313700938,1707595854175,-1000.0,0.00035843,10]
[313700939,1707595854185,-681.97,0.0003589,2]
[313700940,1707595854194,-150.0,0.00035905,2]
[313700941,1707595854203,-152.84590275,0.0003591,5]
[313700942,1707595854212,-50000.0,0.00036,6]
[313700943,1707595854222,-10000.0,0.00036,2]
[313700944,1707595854231,-10000.0,0.00036,5]
[313700945,1707595854240,-274.89637163,0.00036,4]
[313700946,1707595854249,-1500.0,0.00036,2]
[313700947,1707595854258,-299.82335503,0.00036,4]
[313700948,1707595854268,-1002.0,0.00036,6]
[313700949,1707595854277,-300.0,0.00036,37]
[313700950,1707595854286,-322558.10014226,0.00036,2]
[313700951,1707595854295,-36119.14867837,0.00036,30]
[313700952,1707595854305,-204.0,0.00036,2]
[313700953,1707595854314,-249.07165009,0.00036036,2]
[313700954,1707595854323,-170.0,0.000361,25]
[313700955,1707595854332,-1998.44,0.00036115,2]
[313700956,1707595854341,-681.97,0.00036164,2]
[313700957,1707595854350,-253.16,0.00036164,2]
[313700958,1707595854359,-1105.29969227,0.000362,2]
[313700959,1707595854368,-1000.0,0.000362,2]
[313700960,1707595854377,-1115.01998597,0.00036301,30]
[313700961,1707595854386,-1000.0,0.00036394,10]
[313700962,1707595854395,-1000.0,0.00036394,10]
[313700963,1707595854403,-1000.0,0.00036394,10]
[313700964,1707595854412,-1000.0,0.00036394,10]
[313700965,1707595854421,-1000.0,0.00036394,10]
[313700966,1707595854430,-1000.0,0.00036394,10]
[313700967,1707595854439,-1000.0,0.00036394,10]
[313700968,1707595854447,-1000.0,0.00036394,10]
[313700969,1707595854457,-1000.0,0.00036394,10]
[313700970,1707595854466,-1000.0,0.00036394,10]
[313700971,1707595854475,-1000.0,0.00036394,10]
[313700972,1707595854484,-1000.0,0.00036394,10]
[313700973,1707595854493,-1000.0,0.00036394,10]
[313700974,1707595854502,-1000.0,0.00036394,10]
[313700975,1707595854512,-153.75,0.000364,3]
[313700976,1707595854520,-153.75,0.000364,3]
[313700977,1707595854530,-153.75,0.000364,3]
[313700978,1707595854538,-153.75,0.000364,3]
[313700979,1707595854548,-153.75,0.000364,3]
[313700980,1707595854557,-153.75,0.000364,3]
[313700981,1707595854566,-153.75,0.000364,3]
[313700982,1707595854575,-153.75,0.000364,3]
[313700983,1707595854584,-153.75,0.000364,3]
[313700984,1707595854593,-153.75,0.000364,3]
[313700985,1707595854602,-153.75,0.000364,3]
[313700986,1707595854611,-153.75,0.000364,3]
[313700987,1707595854621,-1000.0,0.00036429,2]
[313700988,1707595854631,-681.97,0.00036438,2]
[313700989,1707595854641,-163.18,0.00036438,2]
[313700990,1707595854649,-163.18,0.00036438,31]
[313700991,1707595854658,-163.18,0.00036438,60]
[313700992,1707595854667,-163.18,0.00036438,89]
[313700993,1707595854677,-155.40594472,0.00036472,4]
[313700994,1707595854686,-150.0,0.00036482,2]
[313700995,1707595854695,-4000.0,0.00036484,11]
[313700996,1707595854704,-12000.0,0.00036598,8]
[313700997,1707595854713,-170.0,0.000366,25]
[313700998,1707595854723,-11324.20358883,0.0003668,30]
[313700999,1707595854734,-1824.12913,0.00036688,2]
[313701000,1707595854744,-681.97,0.00036712,2]
[313701001,1707595854754,-1000.0,0.00036717,10]
[313701002,1707595854765,-6576.17714989,0.0003673,2]
[313701003,1707595854775,-305.44,0.0003682,2]
[313701004,1707595854786,-64264.0,0.000369,2]
[313701005,1707595854795,-681.97,0.00036986,2]
[313701006,1707595854805,-155.0,0.00036987,2]
[313701007,1707595854815,-50000.0,0.00037,7]
[313701008,1707595854825,-4205.94905768,0.00037,14]
[313701009,1707595854835,-10000.0,0.00037,3]
[313701010,1707595854844,-1000.0,0.00037,7]
[313701011,1707595854854,-10000.0,0.00037,5]
[313701012,1707595854864,-750.0,0.00037,2]
[313701013,1707595854873,-300.0,0.00037,38]
[313701014,1707595854882,-1550.0,0.00037,3]
[313701015,1707595854891,-1092.0,0.00037,35]
[313701016,1707595854901,-4000.0,0.00037,2]
[313701017,1707595854913,-150.0,0.00037059,2]
[313701018,1707595854922,-10000.0,0.00037075,2]
[313701019,1707595854931,-172.645144,0.000371,26]
[313701020,1707595854940,-155.97785463,0.00037119,7]
[313701021,1707595854950,-152.84590354,0.00037126,2]
[313701022,1707595854959,-1000.0,0.00037155,10]
[313701023,1707595854968,-154.54460154,0.00037161,7]
[313701024,1707595854977,-153.7803214,0.00037191,7]
[313701025,1707595854988,-152.20144922,0.00037208,7]
[313701026,1707595854997,-155.70237223,0.00037221,7]
[313701027,1707595855006,-207.0,0.00037228,25]
[313701028,1707595855015,-681.97,0.0003726,2]
[313701029,1707595855025,-155.97785463,0.00037262,7]
[313701030,1707595855034,-160.59630428,0.0003728,7]
[313701031,1707595855043,-2131.20696793,0.00037291,4]
[313701032,1707595855053,-2779.89578086,0.00037333,5]
[313701033,1707595855062,-75187.99,0.00037335,5]
[313701034,1707595855072,-200.0,0.0003741,30]
[313701035,1707595855082,-153.7803214,0.00037456,7]
[313701036,1707595855091,-153.6570698,0.00037472,2]
[313701037,1707595855100,-154.15154957,0.00037485,7]
[313701038,1707595855110,-500.0,0.000375,2]
[313701039,1707595855119,-270.85,0.00037508,5]
[313701040,1707595855129,-681.97,0.00037534,2]
[313701041,1707595855138,-421.67276894,0.0003756,7]
[313701042,1707595855148,-154.54460154,0.00037565,7]
[313701043,1707595855158,-150.0,0.00037635,2]
[313701044,1707595855167,-421.67276894,0.00037646,7]
[313701045,1707595855176,-671.88,0.00037671,2]
[313701046,1707595855186,-22517.84162564,0.00037681,2]
[313701047,1707595855195,-50070.47768617,0.00037699,2]
[313701048,1707595855205,-154.54460154,0.00037702,7]
[313701049,1707595855214,-421.67276894,0.00037747,7]
[313701050,1707595855224,-18009.08451912,0.0003777,2]
[313701051,1707595855233,-6265.55,0.0003777,7]
[313701052,1707595855242,-6265.55,0.0003777,7]
[313701053,1707595855254,-6265.55,0.0003777,7]
[313701054,1707595855264,-6265.55,0.0003777,7]
[313701055,1707595855273,-154.15154957,0.00037785,7]
[313701056,1707595855282,-50000.0,0.00037794,15]
[313701057,1707595855292,-1500.0,0.000378,20]
[313701058,1707595855301,-480.0,0.000378,10]
[313701059,1707595855311,-681.97,0.00037808,2]
[313701060,1707595855320,-1998.44,0.0003782,2]
[313701061,1707595855330,-2515.0,0.00037857,2]
[313701062,1707595855339,-343.0,0.00037857,2]
[313701063,1707595855348,-151.0,0.00037864,2]
[313701064,1707595855358,-250.49088,0.00037864,2]
[313701065,1707595855367,-2286.0,0.0003788,2]
[313701066,1707595855376,-4304972.45075181,0.000379,2]
[313701067,1707595855386,-65302.07973765,0.000379,2]
[313701068,1707595855395,-1185.76083569,0.000379,2]
[313701069,1707595855405,-1288.38157118,0.000379,2]
[313701070,1707595855415,-657686.778026,0.000379,2]
[313701071,1707595855424,-77979.18537391,0.000379,2]
[313701072,1707595855433,-419.19,0.00037956,2]
[313701073,1707595855442,-1232.0,0.00037956,2]
[313701074,1707595855451,-258.537,0.00037956,2]
[313701075,1707595855460,-1605.53274188,0.00037973,10]
[313701076,1707595855469,-4764.0,0.0003799,2]
[313701077,1707595855478,-50000.0,0.00038,8]
[313701078,1707595855488,-370833.0,0.00038,2]
[313701079,1707595855497,-9147.04849387,0.00038,3]
[313701080,1707595855507,-10000.0,0.00038,5]
[313701081,1707595855516,-2000.0,0.00038,4]
[313701082,1707595855526,-163.0407038,0.00038,5]
[313701083,1707595855535,-79467.05565212,0.00038,2]
[313701084,1707595856015,-473.04997849,0.00038,2]
[313701085,1707595856026,-587.4769397,0.00038,2]
[313701086,1707595856038,-368.04046622,0.00038,2]
[313701087,1707595856058,-2447.8061338,0.00038,2]
[313701088,1707595856071,-582.17636691,0.00038,2]
[313701089,1707595856100,-186.085168,0.00027397,7]
[313701090,1707595856109,-5229.18755455,0.00038,2]
[313701091,1707595856121,-933.35126929,0.00038,2]
[313701092,1707595856133,-261.355,0.00038,2]
[313701093,1707595856145,-2355.0,0.00038,2]
[313701094,1707595856156,-402.36689515,0.00038,2]
[313701095,1707595856175,-546.04999995,0.00027397,7]
[313701096,1707595856187,-4374.97867205,0.00027397,7]
[313701097,1707595856196,-329.21132795,0.00038,2]
[313701098,1707595856207,-300.0,0.00038,2]
[313701099,1707595856218,-778.79529046,0.00038,2]
[313701100,1707595856229,-293.7174423,0.00038,2]
[313701101,1707595856529,-155.0,0.00022487,7]
[313701102,1707595856540,-151.073889,0.00027397,7]
[313701103,1707595856549,-320.99588228,0.00027397,7]
[313701104,1707595856561,-4600.03278972,0.00027397,7]
[313701105,1707595856570,-151.073889,0.00027397,7]
[313701106,1707595856790,-151.073889,0.00027397,7]
[313701107,1707595856802,-4921.028672,0.00028,7]
[313701108,1707595856813,-4921.028672,0.00028347,7]
[313701109,1707595856825,-4921.028681,0.00028822,7]
[313701110,1707595856834,-19214.1933097,0.00038,2]
[313701111,1707595856857,-274.27926531,0.00038,2]
[313701112,1707595856869,-195528.3756027,0.00038,2]
[313701113,1707595856878,-1000.0,0.00038,8]
[313701114,1707595856887,-4974.53413545,0.00038,4]
[313701115,1707595856898,-230390.78190716,0.00038,4]
[313701116,1707595856912,-402.0,0.00038,6]
[313701117,1707595856923,-152424.03224126,0.00038,2]
[313701118,1707595856932,-300.0,0.00038,39]
[313701119,1707595856942,-107846.78742777,0.00038,2]
[313701120,1707595856952,-1000.0,0.00038,37]
[313701121,1707595856963,-169.0,0.00038,2]
[313701122,1707595856972,-154.54460154,0.00038036,7]
[313701123,1707595856982,-163.84028982,0.00038037,7]
[313701124,1707595856991,-6265.55,0.00038044,7]
[313701125,1707595857000,-6265.55,0.00038044,7]
[313701126,1707595857009,-500.0,0.00038062,6]
[313701127,1707595857018,-500.0,0.00038062,6]
[313701128,1707595857028,-500.0,0.00038062,6]
[313701129,1707595857037,-500.0,0.00038062,6]
[313701130,1707595857046,-500.0,0.00038062,6]
[313701131,1707595857055,-681.97,0.00038082,2]
[313701132,1707595857065,-1831.78,0.000381,3]